fUST/lending_fUST_20251230
["ID","MTS","AMOUNT","RATE_DAILY","PERIOD"]
[400071008,1767066302150,300.0,0.00012894,2]
[400071009,1767066302931,288.0,0.00012894,2]
[400071010,1767066306719,5697.78387623,0.00012788,2]
[400071011,1767066306749,10000.01,0.00012788,2]
[400071012,1767066306780,10000.01,0.00012788,2]
[400071013,1767066306808,10000.01,0.00012788,2]
[400071014,1767066306839,10000.01,0.00012788,2]
[400071015,1767066306868,10000.01,0.00012788,2]
[400071016,1767066306897,10000.01,0.00012788,2]
[400071017,1767066306927,10000.01,0.00012788,2]
[400071018,1767066306957,10000.01,0.00012788,2]
[400071019,1767066306988,10000.01,0.00012788,2]
[400071020,1767066314446,-687.53668162,0.00012788,2]
[400071021,1767066314542,-10000.01,0.00012788,2]
[400071022,1767066314637,-10000.01,0.00012788,2]
[400071023,1767066314753,-10000.01,0.00012788,2]
[400071024,1767066314881,-10000.01,0.00012788,2]
[400071025,1767066315010,-10000.01,0.00012788,2]
[400071026,1767066316411,-10000.01,0.00012788,2]
[400071027,1767066316533,-10000.01,0.00012788,2]
[400071028,1767066316646,-10000.01,0.00012788,2]
[400071029,1767066316793,-10000.01,0.00012788,2]
[400071030,1767066316895,-10000.01,0.00012788,2]
[400071031,1767066317006,-10000.01,0.00012788,2]
[400071032,1767066317132,-10000.01,0.00012788,2]
[400071033,1767066317440,-10000.01,0.00012788,2]
[400071034,1767066317549,-10000.01,0.00012788,2]
[400071035,1767066317664,-10000.01,0.00012788,2]
[400071036,1767066317781,-10000.01,0.00012788,2]
[400071037,1767066317877,-10000.01,0.00012788,2]
[400071038,1767066318003,-10000.01,0.00012788,2]
[400071039,1767066318144,-10000.01,0.00012788,2]
[400071041,1767066346896,994.6783543,0.0001265,2]
[400071042,1767066348465,10000.0,0.00028767,120]
[400071043,1767066355022,10000.0,0.00028767,120]
[400071044,1767066367516,10000.0,0.00028767,120]
[400071045,1767066369305,-5000.0,0.0001266,2]
[400071046,1767066373471,-300.0,0.00012787,2]
[400071047,1767066373499,-4700.0,0.00012788,2]
[400071048,1767066374106,10000.0,0.00028767,120]
[400071049,1767066376976,0.01,0.0001266,2]
[400071050,1767066376998,4999.99,0.0001266,2]
[400071051,1767066377943,-5000.0,0.00012788,2]
[400071052,1767066382184,10000.0,0.00028767,120]
[400071053,1767066384994,-5000.0,0.00012788,2]
[400071054,1767066387139,-5000.0,0.00012788,2]
[400071055,1767066388629,223.1,0.0001,2]
[400071056,1767066390670,10000.0,0.00028767,120]
[400071057,1767066398909,10000.0,0.00028767,120]
[400071058,1767066400323,5000.0,0.00012788,2]
[400071059,1767066405547,10000.0,0.00028767,120]
[400071060,1767066411521,10000.0,0.00028767,120]
[400071061,1767066415159,-8782.2416457,0.00012788,2]
[400071062,1767066415300,-10000.01,0.00012788,2]
[400071063,1767066415473,-10000.01,0.00012788,2]
[400071064,1767066415529,-10000.01,0.00012788,2]
[400071065,1767066417191,10000.0,0.00028767,120]
[400071066,1767066418062,-10000.01,0.00012788,2]
[400071067,1767066424170,-5000.0,0.00012659,2]
[400071070,1767066433539,10000.0,0.00028767,120]
[400071071,1767066446938,0.01,0.00012778,2]
[400071072,1767066446960,4999.99,0.00012778,2]
[400071074,1767066461013,10000.0,0.00028767,120]
[400071075,1767066469815,5000.0,0.00012778,2]
[400071076,1767066474585,10000.0,0.00028767,120]
[400071077,1767066481124,10000.0,0.00028767,120]
[400071078,1767066487517,10000.0,0.00028767,120]
[400071079,1767066492820,0.02,0.00012778,2]
[400071080,1767066492841,4999.98,0.00012778,2]
[400071081,1767066494461,10000.0,0.00028767,120]
[400071082,1767066501850,10000.0,0.00028767,120]
[400071083,1767066508792,10000.0,0.00028767,120]
[400071084,1767066514929,10000.0,0.00028767,120]
[400071085,1767066515910,5000.0,0.00013,3]
[400071086,1767066520653,10000.0,0.00028767,120]
[400071087,1767066529448,10000.0,0.00028767,120]
[400071088,1767066537060,10000.0,0.00028767,120]
[400071089,1767066539907,5000.0,0.00013,3]
[400071090,1767066543476,10000.0,0.00028767,120]
[400071091,1767066551005,10000.0,0.00028767,120]
[400071101,1767066563869,3972.54370645,0.00013,3]
[400071103,1767066573638,213.0,0.00028767,120]
[400071115,1767066632453,-1200.0,0.00012787,2]
[400071116,1767066632463,-300.0,0.00012787,2]
[400071117,1767066632473,-300.0,0.00012787,2]
[400071118,1767066632482,-300.0,0.00012787,2]
[400071119,1767066632491,-601.0,0.00012787,2]
[400071120,1767066632500,-1102.1415143,0.00012788,2]
[400071121,1767066632512,-743.24954595,0.00012788,2]
[400071128,1767066638443,-1637.54214461,0.00012788,2]
[400071129,1767066638455,-1879.21932739,0.00012788,2]
[400071130,1767066638494,-463.31269241,0.00012788,2]
[400071131,1767066638507,-2338.85115759,0.00012788,2]
[400071138,1767066640938,-0.00034649,0.00012788,2]
[400071139,1767066641557,-610.63788328,0.00012788,2]
[400071155,1767066646509,-15960.21469712,0.00012788,2]
[400071157,1767066662375,300.0,0.00012787,2]
[400071158,1767066683192,400.48199547,0.00012787,2]
[400071159,1767066684901,500.0,0.00012787,2]
[400071160,1767066684933,500.0,0.00012787,2]
[400071161,1767066684962,500.0,0.00012787,2]
[400071162,1767066684990,500.0,0.00012787,2]
[400071163,1767066685018,500.0,0.00012787,2]
[400071164,1767066685047,500.0,0.00012787,2]
[400071165,1767066685089,500.0,0.00012787,2]
[400071166,1767066685118,500.0,0.00012787,2]
[400071167,1767066685148,500.0,0.00012787,2]
[400071168,1767066685202,500.0,0.00012787,2]
[400071169,1767066685231,500.0,0.00012787,2]
[400071170,1767066685259,407.1036179,0.00012787,2]
[400071171,1767066685296,500.0,0.00012787,2]
[400071172,1767066685335,500.0,0.00012787,2]
[400071173,1767066685367,500.0,0.00012787,2]
[400071174,1767066685405,500.0,0.00012787,2]
[400071175,1767066685433,500.0,0.00012787,2]
[400071176,1767066685461,500.0,0.00012787,2]
[400071177,1767066685495,392.42438663,0.00012787,2]
[400071178,1767066685517,107.57561337,0.00012787,2]
[400071179,1767066685563,500.0,0.00012787,2]
[400071180,1767066685676,500.0,0.00012787,2]
[400071181,1767066685728,500.0,0.00012787,2]
[400071182,1767066685776,500.0,0.00012787,2]
[400071183,1767066709991,459.87915445,0.00012787,2]
[400071184,1767066713920,500.0,0.00012787,2]
[400071185,1767066713951,500.0,0.00012787,2]
[400071186,1767066713981,500.0,0.00012787,2]
[400071187,1767066714010,500.0,0.00012787,2]
[400071188,1767066714038,500.0,0.00012787,2]
[400071189,1767066714068,331.81964206,0.00012787,2]
[400071190,1767066714098,500.0,0.00012787,2]
[400071191,1767066714126,500.0,0.00012787,2]
[400071192,1767066714156,500.0,0.00012787,2]
[400071193,1767066714184,500.0,0.00012787,2]
[400071194,1767066714212,500.0,0.00012787,2]
[400071195,1767066714255,500.0,0.00012787,2]
[400071196,1767066714288,500.0,0.00012787,2]
[400071197,1767066714397,500.0,0.00012787,2]
[400071198,1767066714436,500.0,0.00012787,2]
[400071199,1767066714486,500.0,0.00012787,2]
[400071200,1767066714544,500.0,0.00012787,2]
[400071201,1767066714595,500.0,0.00012787,2]
[400071202,1767066723086,300.0,0.00012787,2]
[400071203,1767066725011,20000.0,0.00028767,120]
[400071204,1767066736177,500.0,0.00012787,2]
[400071205,1767066736210,368.19035794,0.00012787,2]
[400071206,1767066736233,131.80964206,0.00012787,2]
[400071207,1767066736261,500.0,0.00012787,2]
[400071208,1767066736290,500.0,0.00012787,2]
[400071209,1767066736325,500.0,0.00012787,2]
[400071210,1767066736354,500.0,0.00012787,2]
[400071211,1767066736512,500.0,0.00012787,2]
[400071212,1767066736542,500.0,0.00012787,2]
[400071213,1767066736575,500.0,0.00012787,2]
[400071214,1767066736607,500.0,0.00012787,2]
[400071215,1767066736635,500.0,0.00012787,2]
[400071216,1767066736666,500.0,0.00012787,2]
[400071217,1767066736695,500.0,0.00012787,2]
[400071218,1767066736724,500.0,0.00012787,2]
[400071219,1767066736752,500.0,0.00012787,2]
[400071220,1767066736781,203.85742555,0.00012787,2]
[400071221,1767066736809,500.0,0.00012787,2]
[400071222,1767066736843,500.0,0.00012787,2]
[400071223,1767066736871,500.0,0.00012787,2]
[400071224,1767066736899,500.0,0.00012787,2]
[400071225,1767066736927,500.0,0.00012787,2]
[400071226,1767066736959,500.0,0.00012787,2]
[400071227,1767066736987,164.34293239,0.00012787,2]
[400071228,1767066737009,335.65706761,0.00012787,2]
[400071229,1767066737037,500.0,0.00012787,2]
[400071230,1767066737065,500.0,0.00012787,2]
[400071231,1767066737097,500.0,0.00012787,2]
[400071232,1767066737130,500.0,0.00012787,2]
[400071233,1767066737158,500.0,0.00012787,2]
[400071234,1767066737189,500.0,0.00012787,2]
[400071235,1767066737225,500.0,0.00012787,2]
[400071236,1767066737265,500.0,0.00012787,2]
[400071237,1767066737296,500.0,0.00012787,2]
[400071238,1767066737324,500.0,0.00012787,2]
[400071239,1767066737356,500.0,0.00012787,2]
[400071240,1767066765683,5000.0,0.00012788,2]
[400071241,1767066766632,500.0,0.00012787,2]
[400071242,1767066766684,537.34723462,0.00012787,2]
[400071243,1767066766923,500.0,0.00012787,2]
[400071245,1767066879010,800.0,0.00012612,2]
[400071246,1767066895878,-5000.0,0.00012659,2]
[400071247,1767066898065,-1009.71108793,0.00012687,2]
[400071248,1767066898086,-207.33510635,0.00012687,2]
[400071249,1767066898109,-500.0,0.00012787,2]
[400071250,1767066898130,-500.0,0.00012787,2]
[400071251,1767066898152,-267.45595754,0.00012787,2]
[400071252,1767066898176,-500.0,0.00012787,2]
[400071253,1767066898197,-481.31329356,0.00012787,2]
[400071254,1767066898219,-500.0,0.00012787,2]
[400071255,1767066898240,-500.0,0.00012787,2]
[400071256,1767066898263,-500.0,0.00012787,2]
[400071257,1767066898285,-34.18455462,0.00012787,2]
[400071258,1767066901384,-186.20118794,0.00012787,2]
[400071259,1767066901405,-500.0,0.00012787,2]
[400071260,1767066901428,-226.14306424,0.00012787,2]
[400071261,1767066901450,-191.15397139,0.00012787,2]
[400071262,1767066901477,-1200.0,0.00012787,2]
[400071263,1767066901503,-2696.50177643,0.00012788,2]
[400071264,1767066901759,5000.0,0.00012649,2]
[400071265,1767066913471,-300.0,0.00012787,2]
[400071266,1767066913495,-217.02145616,0.00012788,2]
[400071267,1767066913523,-282.97854384,0.00012788,2]
[400071268,1767066925882,5000.0,0.00012777,2]
[400071269,1767066929792,291.1395924,0.0001208,2]
[400071270,1767066942516,271.48,0.00012329,2]
[400071271,1767066949554,4437.3904076,0.00012777,2]
[400071272,1767066952945,226.23,0.00012329,2]
[400071273,1767066963588,188.52,0.00012329,2]
[400071274,1767066969834,369.360372,0.00028767,120]
[400071275,1767066974042,157.1,0.00012329,2]
[400071276,1767066984493,785.55,0.00012329,2]
[400071277,1767066995589,800.0,0.00012763,2]
[400071278,1767067046025,209.59241603,0.00012213,2]
[400071279,1767067055907,800.0,0.00012638,2]
[400071280,1767067055962,800.0,0.00012649,2]
[400071281,1767067075044,537.26404105,0.00012688,2]
[400071282,1767067091940,999.0,0.00011786,2]
[400071283,1767067150023,5000.0,0.00012777,2]
[400071284,1767067151999,1654.15354292,0.0001273,2]
[400071285,1767067152021,694.09464991,0.0001273,2]
[400071286,1767067172795,5000.0,0.00012777,2]
[400071287,1767067193327,-500.0,0.00012778,2]
[400071288,1767067195541,4305.91535009,0.00012777,2]
[400071289,1767067226875,-694.08464991,0.00012777,2]
[400071290,1767067241920,5000.0,0.00012777,2]
[400071291,1767067242130,-601.0,0.00012777,2]
[400071292,1767067265394,5000.0,0.00012777,2]
[400071293,1767067284585,500.0,0.00012514,2]
[400071294,1767067284739,500.0,0.00012651,2]
[400071295,1767067285698,500.0,0.00012514,2]
[400071296,1767067285837,500.0,0.00012514,2]
[400071297,1767067285887,500.0,0.00012651,2]
[400071298,1767067285919,157.508371,0.00012514,2]
[400071299,1767067285999,500.0,0.00012651,2]
[400071300,1767067286031,500.0,0.00012514,2]
[400071301,1767067286177,140.501629,0.00012651,2]
[400071302,1767067286204,386.32454633,0.00012651,2]
[400071303,1767067287499,151.66549106,0.00012651,2]
[400071304,1767067288827,5000.0,0.00012777,2]
[400071305,1767067311705,4462.01996261,0.00012777,2]
[400071306,1767067311731,537.98003739,0.00012777,2]
[400071307,1767067334672,5000.0,0.00012777,2]
[400071308,1767067340116,4462.02996261,0.00012687,2]
[400071309,1767067340140,10000.01,0.00012687,2]
[400071310,1767067340164,10000.01,0.00012687,2]
[400071311,1767067437309,-736.02162732,0.00011777,2]
[400071312,1767067439615,-176.12863258,0.00011777,2]
[400071313,1767067441176,-556.29238694,0.00011777,2]
[400071314,1767067542321,-271.39065936,0.00011659,2]
[400071315,1767067544008,-384.17220977,0.00011659,2]
[400071316,1767067545422,-300.0,0.00011659,2]
[400071317,1767067547576,-165.87439691,0.00011659,2]
[400071318,1767067549200,-158.91394739,0.00011659,2]
[400071319,1767067552563,-176.42180026,0.00011659,2]
[400071320,1767067554597,-166.76,0.00011659,2]
[400071321,1767067557276,-194.96628636,0.00011659,2]
[400071322,1767067558800,-440.16355617,0.00011659,2]
[400071323,1767067562036,-348.57285762,0.00011659,2]
[400071324,1767067563653,-260.33390737,0.00011659,2]
[400071325,1767067565170,-300.0,0.00011659,2]
[400071326,1767067567315,-220.40379971,0.00011659,2]
[400071327,1767067569478,-300.0,0.00011659,2]
[400071328,1767067573771,-151.3,0.00011659,2]
[400071329,1767067577060,-389.37666352,0.00011659,2]
[400071330,1767067579189,-319.29078007,0.00011659,2]
[400071331,1767067580741,-452.05913549,0.00011659,2]
[400071332,1767067580763,-48.43413956,0.00011682,2]
[400071333,1767067584120,-163.69870296,0.00011682,2]
[400071334,1767067601798,-205.95634003,0.00011565,2]
[400071335,1767067604034,-207.33510635,0.00011565,2]
[400071336,1767067608528,-247.3539234,0.00011565,2]
[400071337,1767067610672,-288.76688686,0.00011565,2]
[400071338,1767067614496,-452.46709458,0.00011565,2]
[400071339,1767067615984,-226.75319473,0.00011565,2]
[400071340,1767067619858,-232.30181117,0.00011565,2]
[400071341,1767067622641,-160.64,0.00011565,2]
[400071342,1767067624700,-355.4956333,0.00011565,2]
[400071351,1767067626678,-343.97239722,0.00011565,2]
[400071365,1767067629375,-175.27605261,0.00011565,2]
[400071366,1767067630903,-285.7295042,0.00011565,2]
[400071367,1767067634418,-300.0,0.00011565,2]
[400071368,1767067635910,-386.28053189,0.00011565,2]
[400071372,1767067637430,-557.58574656,0.00011565,2]
[400071379,1767067639229,-177.66951676,0.00011565,2]
[400071380,1767067642001,-169.32352975,0.00011565,2]
[400071381,1767067643497,-227.09273059,0.00011565,2]
[400071382,1767067643520,-5.30961148,0.00011682,2]
[400071383,1767067643542,-40.97721982,0.00011777,2]
[400071390,1767067661706,-339.19355815,0.00011659,2]
[400071391,1767067663877,-229.9173134,0.00011659,2]
[400071392,1767067666078,-166.0118489,0.00011659,2]
[400071393,1767067667628,-214.2704958,0.00011659,2]
[400071394,1767067670397,-500.0,0.00011659,2]
[400071395,1767067673707,-159.83644383,0.00011659,2]
[400071396,1767067675313,-271.74674311,0.00011659,2]
[400071397,1767067678226,-360.92865171,0.00011659,2]
[400071398,1767067679792,255.07,8.991e-05,2]
[400071399,1767067680076,255.07,8.991e-05,2]
[400071400,1767067680353,-570.51762507,0.00011659,2]
[400071401,1767067680452,255.07,8.991e-05,2]
[400071402,1767067682417,-392.52838029,0.00011659,2]
[400071403,1767067684452,-206.58,0.00011659,2]
[400071404,1767067686636,-327.31020534,0.00011659,2]
[400071405,1767067689199,-219.61038699,0.00011659,2]
[400071406,1767067692735,-209.97959336,0.00011659,2]
[400071407,1767067696019,-151.58141478,0.00011659,2]
[400071408,1767067698090,-183.34865291,0.00011659,2]
[400071409,1767067699567,-420.62349652,0.00011659,2]
[400071410,1767067731490,-76.01518984,0.00011659,2]
[400071411,1767067744527,5000.0,0.00011659,2]
[400071412,1767067767392,5000.0,0.00011718,2]
[400071413,1767067770805,471.43,0.000117,2]
[400071414,1767067779094,4528.58,0.00011609,2]
[400071415,1767067779117,3064.052737,0.00011609,2]
[400071416,1767067790154,5000.0,0.00011718,2]
[400071417,1767067805592,585.0,0.00011718,2]
[400071418,1767067814968,1350.957263,0.00011718,2]
[400071419,1767067814992,3649.042737,0.00011718,2]
[400071439,1767067831535,-255.92687942,0.00011718,2]
[400071441,1767067831545,-16.69939234,0.00011777,2]
[400071443,1767067831556,-200.4871371,0.00012335,2]
[400071445,1767067831568,-569.3228629,0.00012335,2]
[400071447,1767067831580,-214.07693295,0.00012412,2]
[400071450,1767067831592,-500.0,0.00012412,2]
[400071452,1767067831605,-500.0,0.00012412,2]
[400071454,1767067831617,-160.50566408,0.00012412,2]
[400071457,1767067831628,-800.0,0.00012522,2]
[400071459,1767067831638,-800.0,0.00012536,2]
[400071461,1767067831648,-800.0,0.00012538,2]
[400071463,1767067831661,-500.0,0.00012549,2]
[400071465,1767067831671,-420.61400371,0.00012549,2]
[400071468,1767067831686,-79.38599629,0.00012549,2]
[400071470,1767067831696,-433.77383836,0.00012564,2]
[400071504,1767067837728,-366.22616164,0.00012564,2]
[400071505,1767067837740,-800.0,0.00012574,2]
[400071506,1767067837751,-800.0,0.00012582,2]
[400071507,1767067837763,-429.81123284,0.00012588,2]
[400071508,1767067837774,-800.0,0.00012606,2]
[400071509,1767067837785,-800.0,0.00012607,2]
[400071510,1767067837795,-800.0,0.00012626,2]
[400071511,1767067837806,-800.0,0.00012675,2]
[400071513,1767067837817,-220.70912046,0.00012677,2]
[400071514,1767067837827,-300.0,0.00012677,2]
[400071515,1767067837838,-235.0,0.00012677,2]
[400071517,1767067837848,-300.0,0.00012677,2]
[400071519,1767067837859,-300.0,0.00012677,2]
[400071520,1767067837870,-800.0,0.00012678,2]
[400071521,1767067837881,-500.0,0.00012683,2]
[400071522,1767067837891,-500.0,0.00012683,2]
[400071523,1767067837902,-500.0,0.00012683,2]
[400071524,1767067837913,-500.0,0.00012683,2]
[400071525,1767067837924,-500.0,0.00012683,2]
[400071526,1767067837935,-500.0,0.00012683,2]
[400071527,1767067837946,-500.0,0.00012683,2]
[400071528,1767067837957,-614.33302516,0.00012683,2]
[400071529,1767067837967,-500.0,0.00012683,2]
[400071530,1767067837978,-500.0,0.00012683,2]
[400071531,1767067837989,-500.0,0.00012683,2]
[400071532,1767067837999,-500.0,0.00012683,2]
[400071533,1767067838012,-500.0,0.00012683,2]
[400071534,1767067838026,-500.0,0.00012683,2]
[400071535,1767067838037,-500.0,0.00012683,2]
[400071536,1767067838048,-500.0,0.00012683,2]
[400071537,1767067838060,-500.0,0.00012683,2]
[400071538,1767067838071,-500.0,0.00012683,2]
[400071539,1767067838083,-500.0,0.00012683,2]
[400071540,1767067838095,-296.94312866,0.00012683,2]
[400071541,1767067838106,-500.0,0.00012683,2]
[400071542,1767067838318,-500.0,0.00012683,2]
[400071543,1767067838331,-500.0,0.00012683,2]
[400071544,1767067838342,-500.0,0.00012683,2]
[400071545,1767067838351,-500.0,0.00012683,2]
[400071546,1767067838361,-405.48406639,0.00012683,2]
[400071547,1767067838372,-500.0,0.00012683,2]
[400071548,1767067838382,-500.0,0.00012683,2]
[400071549,1767067838392,-500.0,0.00012683,2]
[400071550,1767067838402,-500.0,0.00012683,2]
[400071551,1767067838412,-500.0,0.00012683,2]
[400071552,1767067838422,-500.0,0.00012683,2]
[400071553,1767067838432,-500.0,0.00012683,2]
[400071554,1767067838442,-500.0,0.00012683,2]
[400071555,1767067838452,-500.0,0.00012683,2]
[400071556,1767067838462,-500.0,0.00012683,2]
[400071557,1767067838472,-500.0,0.00012683,2]
[400071558,1767067838482,-500.0,0.00012683,2]
[400071559,1767067838492,-500.0,0.00012683,2]
[400071560,1767067838502,-154.44804898,0.00012683,2]
[400071561,1767067838512,-500.0,0.00012683,2]
[400071562,1767067838522,-500.0,0.00012683,2]
[400071563,1767067838533,-500.0,0.00012683,2]
[400071564,1767067838543,-500.0,0.00012683,2]
[400071565,1767067838552,-457.52135162,0.00012683,2]
[400071566,1767067838562,-500.0,0.00012683,2]
[400071567,1767067838572,-500.0,0.00012683,2]
[400071568,1767067838581,-500.0,0.00012683,2]
[400071569,1767067838591,-500.0,0.00012683,2]
[400071570,1767067838601,-622.21308784,0.00012683,2]
[400071571,1767067838610,-500.0,0.00012683,2]
[400071572,1767067838620,-500.0,0.00012683,2]
[400071573,1767067838629,-500.0,0.00012683,2]
[400071574,1767067838639,-300.0,0.00012683,2]
[400071575,1767067838648,-1200.0,0.00012683,2]
[400071576,1767067838657,-50000.0,0.00012684,2]
[400071577,1767067838667,-153.87,0.00012685,2]
[400071578,1767067838677,-500.0,0.00012685,2]
[400071579,1767067838687,-172.91364763,0.00012686,2]
[400071580,1767067838697,-500.0,0.00012686,2]
[400071581,1767067838706,-370309.84045078,0.00012687,2]
[400071582,1767067838716,-156.5921861,0.00012688,3]
[400071583,1767067838726,-800.0,0.00012689,2]
[400071584,1767067838736,-800.0,0.00012697,2]
[400071585,1767067838745,-800.0,0.00012708,2]
[400071586,1767067838755,-800.0,0.00012718,2]
[400071587,1767067838767,-800.0,0.00012718,2]
[400071588,1767067838776,-800.0,0.00012763,2]
[400071589,1767067838786,-300.0,0.00012778,2]
[400071590,1767067838796,-272.55284238,0.00012778,2]
[400071591,1767067838806,-152.59794389,0.00012778,2]
[400071592,1767067838815,-800.0,0.00012786,2]
[400071593,1767067838825,-246.52015221,0.00012788,2]
[400071594,1767067838835,-500.0,0.00012788,2]
[400071595,1767067838845,-183.14656959,0.00012788,2]
[400071596,1767067838855,-500.0,0.00012788,2]
[400071597,1767067838865,-1000.0,0.00012788,2]
[400071598,1767067838875,-1006.17336157,0.00012788,2]
[400071599,1767067838885,-551.88239423,0.00012823,2]
[400071600,1767067838895,-208.3472934,0.00012823,2]
[400071601,1767067838905,-166.23828449,0.00012825,3]
[400071602,1767067838915,-838.36966413,0.00012894,2]
[400071603,1767067838929,-689.25745548,0.00012894,2]
[400071604,1767067838939,-3749.05342109,0.000129,2]
[400071605,1767067838949,-500.0,0.00012925,2]
[400071606,1767067838959,-500.0,0.00012925,2]
[400071607,1767067838969,-164.02836511,0.00012925,2]
[400071608,1767067838978,-1785.5,0.00012939,2]
[400071609,1767067838988,-153.87,0.00012959,2]
[400071610,1767067838998,-500.0,0.00012959,2]
[400071611,1767067839008,-185.19950386,0.0001296,2]
[400071612,1767067839017,-218.3259869,0.00012962,3]
[400071613,1767067839027,-300.0,0.00013039,2]
[400071614,1767067839036,-300.0,0.00013039,2]
[400071615,1767067839046,-300.0,0.00013039,2]
[400071616,1767067839056,-300.0,0.00013039,2]
[400071617,1767067839066,-300.0,0.00013039,2]
[400071618,1767067839076,-300.0,0.00013039,2]
[400071619,1767067839086,-300.0,0.00013039,2]
[400071621,1767067839096,-300.0,0.00013039,2]
[400071622,1767067839106,-300.0,0.00013039,2]
[400071623,1767067839116,-300.0,0.00013039,2]
[400071624,1767067839126,-300.0,0.00013039,2]
[400071625,1767067839137,-300.0,0.00013039,2]
[400071626,1767067839148,-300.0,0.00013039,2]
[400071627,1767067839158,-300.0,0.00013039,2]
[400071628,1767067839167,-300.0,0.00013039,2]
[400071629,1767067839177,-600.0,0.00013039,2]
[400071630,1767067839186,-500.0,0.00013062,2]
[400071631,1767067839196,-500.0,0.00013062,2]
[400071633,1767067839205,-500.0,0.00013199,2]
[400071635,1767067839214,-500.0,0.00013199,2]
[400071636,1767067839223,-153.88514916,0.00013233,2]
[400071637,1767067839233,-500.0,0.00013233,2]
[400071638,1767067839243,-519.80046235,0.00013273,2]
[400071639,1767067839252,-500.0,0.00013273,2]
[400071640,1767067839262,-500.0,0.00013273,2]
[400071641,1767067839271,-500.0,0.00013273,2]
[400071642,1767067839282,-500.0,0.00013273,2]
[400071643,1767067839292,-500.0,0.00013273,2]
[400071644,1767067839302,-500.0,0.00013273,2]
[400071645,1767067839311,-500.0,0.00013273,2]
[400071646,1767067839321,-605.28720895,0.00013273,2]
[400071647,1767067839330,-500.0,0.00013273,2]
[400071648,1767067839339,-500.0,0.00013273,2]
[400071649,1767067839348,-500.0,0.00013273,2]
[400071650,1767067839357,-500.15325233,0.00013273,2]
[400071651,1767067839367,-283.15409111,0.00013273,2]
[400071652,1767067839376,-500.0,0.00013273,2]
[400071653,1767067839386,-500.0,0.00013273,2]
[400071656,1767067839395,-500.0,0.00013273,2]
[400071657,1767067839404,-165.40870093,0.00013273,2]
[400071659,1767067839413,-217.77534712,0.00013273,2]
[400071660,1767067839423,-500.0,0.00013273,2]
[400071661,1767067839433,-465.37686128,0.00013273,2]
[400071662,1767067839442,-158.36952314,0.00013273,2]
[400071663,1767067839452,-500.0,0.00013273,2]
[400071664,1767067839461,-500.0,0.00013273,2]
[400071666,1767067839471,-500.0,0.00013273,2]
[400071667,1767067839481,-500.0,0.00013273,2]
[400071668,1767067839490,-500.0,0.00013273,2]
[400071669,1767067839500,-500.0,0.00013273,2]
[400071670,1767067839509,-500.0,0.00013273,2]
[400071671,1767067839519,-500.0,0.00013273,2]
[400071672,1767067839528,-500.0,0.00013273,2]
[400071673,1767067839538,-500.0,0.00013273,2]
[400071674,1767067839548,-535.90784509,0.00013273,2]
[400071675,1767067839559,-270.09084155,0.00013273,2]
[400071676,1767067839569,-500.41782704,0.00013273,2]